[Event "Early-Titled-Tuesday-Blitz-February-13-2024"]
[Site "Chess.com"]
[Date "2024.02.13"]
[Round "2"]
[White "chessdjw"]
[Black "Predator0608"]
[Result "0-1"]
[WhiteElo "2761"]
[BlackElo "2567"]
[TimeControl "180+1"]
[EndTime "8:20:07 PST"]
[Termination "Predator0608 won by checkmate"]

1. e4 {[%clk 0:03:00.9]} 1... c5 {[%clk 0:02:59.3]} 2. Nf3 {[%clk 0:03:00.9]}
2... d6 {[%clk 0:02:59.4]} 3. d4 {[%clk 0:02:59]} 3... cxd4 {[%clk 0:03:00.3]}
4. Nxd4 {[%clk 0:02:59.8]} 4... Nf6 {[%clk 0:03:00.8]} 5. Nc3 {[%clk 0:02:59.8]}
5... a6 {[%clk 0:03:00.7]} 6. h3 {[%clk 0:02:59.8]} 6... e5 {[%clk 0:03:00.8]}
7. Nb3 {[%clk 0:02:59.7]} 7... h5 {[%clk 0:03:00.9]} 8. Be3 {[%clk 0:02:54.6]}
8... Be6 {[%clk 0:02:58.9]} 9. Qf3 {[%clk 0:02:48.1]} 9... Be7 {[%clk
0:02:38.7]} 10. O-O-O {[%clk 0:02:48.3]} 10... Nbd7 {[%clk 0:02:38.7]} 11. Kb1
{[%clk 0:02:48]} 11... Rc8 {[%clk 0:02:35.2]} 12. Nd5 {[%clk 0:02:45.3]} 12...
Nf8 {[%clk 0:01:33.9]} 13. Bb6 {[%clk 0:02:35.5]} 13... Qd7 {[%clk 0:01:32.9]}
14. Nxe7 {[%clk 0:01:46.9]} 14... Qxe7 {[%clk 0:01:31]} 15. Na5 {[%clk
0:01:30.7]} 15... N8d7 {[%clk 0:01:12.8]} 16. Be3 {[%clk 0:01:11.4]} 16... Nc5
{[%clk 0:00:47.6]} 17. Bd3 {[%clk 0:00:40.5]} 17... Qc7 {[%clk 0:00:40.4]} 18.
Bxc5 {[%clk 0:00:29]} 18... dxc5 {[%clk 0:00:38.5]} 19. Nc4 {[%clk 0:00:25.2]}
19... O-O {[%clk 0:00:37]} 20. Ne3 {[%clk 0:00:22.7]} 20... c4 {[%clk
0:00:36.7]} 21. Be2 {[%clk 0:00:21.4]} 21... c3 {[%clk 0:00:37.2]} 22. g4 {[%clk
0:00:15.8]} 22... Qc5 {[%clk 0:00:34.4]} 23. bxc3 {[%clk 0:00:07.6]} 23... Qxc3
{[%clk 0:00:32]} 24. Nd5 {[%clk 0:00:07.6]} 24... Qa5 {[%clk 0:00:23.3]} 25. g5
{[%clk 0:00:04.5]} 25... Nxd5 {[%clk 0:00:18.8]} 26. exd5 {[%clk 0:00:05.4]}
26... Bd7 {[%clk 0:00:19.7]} 27. Qb3 {[%clk 0:00:05.4]} 27... Rc3 {[%clk
0:00:19.7]} 28. Qb2 {[%clk 0:00:04.4]} 28... Rfc8 {[%clk 0:00:20.2]} 29. Bd3
{[%clk 0:00:04.7]} 29... Ba4 {[%clk 0:00:20.1]} 30. Rc1 {[%clk 0:00:02.5]} 30...
Qxd5 {[%clk 0:00:20]} 31. Rhe1 {[%clk 0:00:01.3]} 31... Qe6 {[%clk 0:00:16.9]}
32. Ka1 {[%clk 0:00:01.3]} 32... b5 {[%clk 0:00:14.7]} 33. f4 {[%clk 0:00:01.7]}
33... Qxh3 {[%clk 0:00:13.9]} 34. fxe5 {[%clk 0:00:02]} 34... Qe6 {[%clk
0:00:14.4]} 35. g6 {[%clk 0:00:02.2]} 35... fxg6 {[%clk 0:00:14.5]} 36. Rcd1
{[%clk 0:00:02.3]} 36... Bxc2 {[%clk 0:00:14.1]} 37. Bxc2 {[%clk 0:00:02.6]}
37... Rxc2 {[%clk 0:00:15]} 38. Qb1 {[%clk 0:00:02.6]} 38... Qc4 {[%clk
0:00:14.3]} 39. Re3 {[%clk 0:00:01.2]} 39... Re2 {[%clk 0:00:13.9]} 40. Rxe2
{[%clk 0:00:01.4]} 40... Qxe2 {[%clk 0:00:14.8]} 41. Rc1 {[%clk 0:00:01.3]}
41... Qxe5+ {[%clk 0:00:15]} 42. Qb2 {[%clk 0:00:01.7]} 42... Rxc1# {[%clk
0:00:15.1]} 0-1

[Event "Early-Titled-Tuesday-Blitz-February-13-2024"]
[Site "Chess.com"]
[Date "2024.02.13"]
[Round "2"]
[White "Real_taiatai"]
[Black "C_K_G"]
[Result "0-1"]
[WhiteElo "2441"]
[BlackElo "2127"]
[TimeControl "180+1"]
[EndTime "8:20:08 PST"]
[Termination "C_K_G won by resignation"]

1. e4 {[%clk 0:03:00.9]} 1... c5 {[%clk 0:02:56.2]} 2. Nf3 {[%clk 0:03:00.4]}
2... d6 {[%clk 0:02:56.5]} 3. Bb5+ {[%clk 0:03:00.7]} 3... Bd7 {[%clk
0:02:56.3]} 4. a4 {[%clk 0:02:58.9]} 4... Nc6 {[%clk 0:02:54.2]} 5. O-O {[%clk
0:02:58.5]} 5... Nf6 {[%clk 0:02:53.8]} 6. Re1 {[%clk 0:02:58.4]} 6... e6 {[%clk
0:02:53.3]} 7. c3 {[%clk 0:02:55.9]} 7... Be7 {[%clk 0:02:46.5]} 8. d4 {[%clk
0:02:54.3]} 8... cxd4 {[%clk 0:02:46.1]} 9. cxd4 {[%clk 0:02:55.2]} 9... O-O
{[%clk 0:02:44.1]} 10. Nc3 {[%clk 0:02:55.5]} 10... a6 {[%clk 0:02:38.1]} 11.
Bd3 {[%clk 0:02:53.4]} 11... Rc8 {[%clk 0:02:36.3]} 12. h3 {[%clk 0:02:48.4]}
12... e5 {[%clk 0:02:32.6]} 13. Be3 {[%clk 0:02:42.6]} 13... exd4 {[%clk
0:02:20.3]} 14. Nxd4 {[%clk 0:02:43.5]} 14... Ne5 {[%clk 0:02:17.9]} 15. Bf1
{[%clk 0:02:43.1]} 15... Re8 {[%clk 0:02:13.3]} 16. Qb3 {[%clk 0:02:32.2]} 16...
Qc7 {[%clk 0:02:09.2]} 17. Rac1 {[%clk 0:02:30.8]} 17... Qb8 {[%clk 0:01:53.1]}
18. f4 {[%clk 0:02:29.8]} 18... Nc6 {[%clk 0:01:49.9]} 19. Nf3 {[%clk
0:02:30.2]} 19... Bf8 {[%clk 0:01:47.2]} 20. Bb6 {[%clk 0:02:22.1]} 20... Be6
{[%clk 0:01:24]} 21. Nd5 {[%clk 0:02:20.1]} 21... Bxd5 {[%clk 0:01:11.1]} 22.
exd5 {[%clk 0:02:21]} 22... Ne7 {[%clk 0:01:10.1]} 23. Bc4 {[%clk 0:02:09.4]}
23... Nf5 {[%clk 0:00:37.5]} 24. Bd3 {[%clk 0:01:56.5]} 24... Ne7 {[%clk
0:00:26.8]} 25. Ng5 {[%clk 0:01:32.8]} 25... h6 {[%clk 0:00:21.7]} 26. Ne4
{[%clk 0:01:32.4]} 26... Nfxd5 {[%clk 0:00:19.8]} 27. Bc4 {[%clk 0:01:26.8]}
27... Nxb6 {[%clk 0:00:15.3]} 28. Bxf7+ {[%clk 0:01:25.5]} 28... Kh8 {[%clk
0:00:15.3]} 29. Bxe8 {[%clk 0:01:23.9]} 29... Rxe8 {[%clk 0:00:15.5]} 30. Qxb6
{[%clk 0:01:23.6]} 30... Nd5 {[%clk 0:00:15.4]} 31. Qd4 {[%clk 0:01:20.9]} 31...
Nxf4 {[%clk 0:00:14.6]} 32. Nf6 {[%clk 0:01:09.4]} 32... Ne2+ {[%clk 0:00:12]}
33. Rxe2 {[%clk 0:01:09.7]} 33... Rxe2 {[%clk 0:00:12]} 34. Nd7 {[%clk
0:01:08.4]} 34... Qe8 {[%clk 0:00:12.2]} 35. Nxf8 {[%clk 0:01:08.1]} 35... Qxf8
{[%clk 0:00:13]} 36. Rf1 {[%clk 0:01:05.4]} 36... Qe7 {[%clk 0:00:13]} 37. Qc4
{[%clk 0:00:53.8]} 37... Qe4 {[%clk 0:00:10.7]} 38. Rf8+ {[%clk 0:00:51.4]}
38... Kh7 {[%clk 0:00:11.3]} 39. Qg8+ {[%clk 0:00:51.8]} 39... Kg6 {[%clk
0:00:12]} 40. Qf7+ {[%clk 0:00:51.7]} 40... Kh7 {[%clk 0:00:12.4]} 41. Qf5+
{[%clk 0:00:40.1]} 41... Qxf5 {[%clk 0:00:11.9]} 42. Rxf5 {[%clk 0:00:41]} 42...
Rxb2 {[%clk 0:00:12.4]} 43. Rd5 {[%clk 0:00:41.3]} 43... Rb4 {[%clk 0:00:12.1]}
44. a5 {[%clk 0:00:40]} 44... Rb5 {[%clk 0:00:12.3]} 45. Rxd6 {[%clk 0:00:40.6]}
45... Rxa5 {[%clk 0:00:11.3]} 46. Rd7 {[%clk 0:00:41.1]} 46... Rb5 {[%clk
0:00:11.7]} 47. Kf2 {[%clk 0:00:39.2]} 47... Kg6 {[%clk 0:00:12.6]} 48. Ke3
{[%clk 0:00:38.8]} 48... Kf6 {[%clk 0:00:13.5]} 49. Kd4 {[%clk 0:00:38.9]} 49...
a5 {[%clk 0:00:13.4]} 50. Rd6+ {[%clk 0:00:37.9]} 50... Ke7 {[%clk 0:00:10.8]}
51. Rg6 {[%clk 0:00:38.4]} 51... Kf7 {[%clk 0:00:11]} 52. Rg3 {[%clk 0:00:36.6]}
52... a4 {[%clk 0:00:10.2]} 53. Kc4 {[%clk 0:00:37.1]} 53... Rb2 {[%clk
0:00:10]} 54. Rf3+ {[%clk 0:00:34.7]} 54... Kg6 {[%clk 0:00:09.6]} 55. g3 {[%clk
0:00:34.8]} 55... b5+ {[%clk 0:00:09.5]} 56. Kc3 {[%clk 0:00:34.7]} 56... Rb3+
{[%clk 0:00:09.9]} 0-1

[Event "Early-Titled-Tuesday-Blitz-February-13-2024"]
[Site "Chess.com"]
[Date "2024.02.13"]
[Round "2"]
[White "wonderfultime"]
[Black "TregubovP"]
[Result "1-0"]
[WhiteElo "3064"]
[BlackElo "2680"]
[TimeControl "180+1"]
[EndTime "8:20:10 PST"]
[Termination "wonderfultime won by resignation"]

1. d4 {[%clk 0:02:57.4]} 1... Nf6 {[%clk 0:02:59.5]} 2. Nf3 {[%clk 0:02:56.3]}
2... c5 {[%clk 0:02:59.6]} 3. c3 {[%clk 0:02:56.5]} 3... b6 {[%clk 0:02:51.4]}
4. Bf4 {[%clk 0:02:56.5]} 4... Bb7 {[%clk 0:02:50.1]} 5. e3 {[%clk 0:02:56.6]}
5... d6 {[%clk 0:02:45]} 6. Nbd2 {[%clk 0:02:56.5]} 6... Nbd7 {[%clk 0:02:40.4]}
7. h3 {[%clk 0:02:56.5]} 7... g6 {[%clk 0:02:39.7]} 8. Be2 {[%clk 0:02:56.7]}
8... Bg7 {[%clk 0:02:40.1]} 9. O-O {[%clk 0:02:57]} 9... O-O {[%clk 0:02:40.1]}
10. a4 {[%clk 0:02:57.6]} 10... a6 {[%clk 0:02:36.4]} 11. Re1 {[%clk 0:02:56.8]}
11... Re8 {[%clk 0:02:31.5]} 12. Bh2 {[%clk 0:02:53.9]} 12... Rc8 {[%clk
0:02:17.9]} 13. Bd3 {[%clk 0:02:47]} 13... e5 {[%clk 0:02:12.2]} 14. dxe5 {[%clk
0:02:32.8]} 14... Nxe5 {[%clk 0:02:10.4]} 15. Nxe5 {[%clk 0:02:19.9]} 15... dxe5
{[%clk 0:02:10.5]} 16. Nc4 {[%clk 0:02:18.8]} 16... Nd5 {[%clk 0:01:40.6]} 17.
Bf1 {[%clk 0:02:07.3]} 17... Qc7 {[%clk 0:01:24.1]} 18. Qb3 {[%clk 0:01:46.2]}
18... Rb8 {[%clk 0:01:11.7]} 19. Rad1 {[%clk 0:01:32.9]} 19... Ba8 {[%clk
0:01:06.6]} 20. e4 {[%clk 0:01:29.9]} 20... Nf4 {[%clk 0:01:00.5]} 21. Ne3
{[%clk 0:01:01.7]} 21... Bxe4 {[%clk 0:00:49.7]} 22. Bxa6 {[%clk 0:01:01.9]}
22... Bc6 {[%clk 0:00:41.7]} 23. Bb5 {[%clk 0:00:55.3]} 23... Red8 {[%clk
0:00:40.6]} 24. Bxc6 {[%clk 0:00:43.6]} 24... Qxc6 {[%clk 0:00:40.7]} 25. Bxf4
{[%clk 0:00:44.4]} 25... exf4 {[%clk 0:00:40.4]} 26. Nd5 {[%clk 0:00:45.1]}
26... Kh8 {[%clk 0:00:31.5]} 27. Nxf4 {[%clk 0:00:43.1]} 27... c4 {[%clk
0:00:27]} 28. Qb5 {[%clk 0:00:40.7]} 28... Qxb5 {[%clk 0:00:09.4]} 29. axb5
{[%clk 0:00:41.6]} 29... Kg8 {[%clk 0:00:07]} 30. Nd5 {[%clk 0:00:39.7]} 30...
Kf8 {[%clk 0:00:04.9]} 31. Kf1 {[%clk 0:00:34.1]} 31... Bh6 {[%clk 0:00:03.2]}
32. Re4 {[%clk 0:00:30.9]} 32... Rd6 {[%clk 0:00:03.2]} 33. Red4 {[%clk
0:00:27.1]} 33... Rbd8 {[%clk 0:00:03.1]} 34. Nxb6 {[%clk 0:00:24.7]} 34... Rxd4
{[%clk 0:00:03.3]} 35. Rxd4 {[%clk 0:00:25.6]} 35... Rxd4 {[%clk 0:00:03.4]} 36.
cxd4 {[%clk 0:00:26.3]} 36... Bg7 {[%clk 0:00:04.2]} 37. Nxc4 {[%clk 0:00:26.4]}
37... Bxd4 {[%clk 0:00:04.3]} 38. Ke2 {[%clk 0:00:25.5]} 38... Ke7 {[%clk
0:00:04.8]} 39. f3 {[%clk 0:00:25.8]} 39... Kd7 {[%clk 0:00:05]} 40. Kd3 {[%clk
0:00:26.5]} 40... Bc5 {[%clk 0:00:04.9]} 41. Ne5+ {[%clk 0:00:20.1]} 41... Ke6
{[%clk 0:00:04.3]} 42. Kc4 {[%clk 0:00:20.5]} 42... Bg1 {[%clk 0:00:03.6]} 43.
Nd3 {[%clk 0:00:19.5]} 43... Kd6 {[%clk 0:00:03.6]} 44. b4 {[%clk 0:00:19.8]}
44... h5 {[%clk 0:00:02.9]} 45. Nc5 {[%clk 0:00:20.2]} 45... Kc7 {[%clk
0:00:03.2]} 46. Nd3 {[%clk 0:00:19.1]} 46... Kb6 {[%clk 0:00:03.2]} 47. Ne5
{[%clk 0:00:19.3]} 47... f6 {[%clk 0:00:03.4]} 48. Nxg6 {[%clk 0:00:19.5]} 48...
Bf2 {[%clk 0:00:04]} 49. Nf4 {[%clk 0:00:19.9]} 1-0

[Event "Early-Titled-Tuesday-Blitz-February-13-2024"]
[Site "Chess.com"]
[Date "2024.02.13"]
[Round "2"]
[White "SmirnovAlexandrA"]
[Black "DanielDardha2005"]
[Result "0-1"]
[WhiteElo "2607"]
[BlackElo "2903"]
[TimeControl "180+1"]
[EndTime "8:20:10 PST"]
[Termination "DanielDardha2005 won on time"]

1. e4 {[%clk 0:03:00.4]} 1... e5 {[%clk 0:02:54.1]} 2. d4 {[%clk 0:02:59.5]}
2... exd4 {[%clk 0:02:52.4]} 3. Qxd4 {[%clk 0:03:00.4]} 3... Nc6 {[%clk
0:02:51.9]} 4. Qe3 {[%clk 0:03:00.6]} 4... Nf6 {[%clk 0:02:50.9]} 5. Nc3 {[%clk
0:03:00.3]} 5... Bb4 {[%clk 0:02:50.6]} 6. Bd2 {[%clk 0:02:58.9]} 6... O-O
{[%clk 0:02:50.6]} 7. O-O-O {[%clk 0:02:58.1]} 7... Re8 {[%clk 0:02:50.6]} 8.
Qg3 {[%clk 0:02:57.7]} 8... Rxe4 {[%clk 0:02:49.7]} 9. a3 {[%clk 0:02:55.9]}
9... Bd6 {[%clk 0:02:48.3]} 10. f4 {[%clk 0:02:55.4]} 10... Re8 {[%clk
0:02:47.1]} 11. Bd3 {[%clk 0:02:54.8]} 11... Bf8 {[%clk 0:02:46.5]} 12. Nf3
{[%clk 0:02:54.2]} 12... d5 {[%clk 0:02:46.4]} 13. Ng5 {[%clk 0:02:39.9]} 13...
Nd4 {[%clk 0:02:29.1]} 14. Rde1 {[%clk 0:01:34.9]} 14... c5 {[%clk 0:02:26.7]}
15. Qh4 {[%clk 0:01:29.9]} 15... Bf5 {[%clk 0:02:22.9]} 16. Bxf5 {[%clk
0:01:19.3]} 16... Nxf5 {[%clk 0:02:21.3]} 17. Qh3 {[%clk 0:01:20.2]} 17... Qd7
{[%clk 0:02:12.5]} 18. Re5 {[%clk 0:01:08.2]} 18... Nd4 {[%clk 0:02:02.6]} 19.
Qxd7 {[%clk 0:00:58.3]} 19... Nxd7 {[%clk 0:02:00.9]} 20. Rxd5 {[%clk
0:00:59.2]} 20... Nf6 {[%clk 0:01:58.3]} 21. Re5 {[%clk 0:00:55.8]} 21... Rxe5
{[%clk 0:01:53.6]} 22. fxe5 {[%clk 0:00:56.7]} 22... Ng4 {[%clk 0:01:53.3]} 23.
Re1 {[%clk 0:00:48.5]} 23... Re8 {[%clk 0:01:50.3]} 24. Bf4 {[%clk 0:00:44.9]}
24... f6 {[%clk 0:01:47.3]} 25. Nf3 {[%clk 0:00:43]} 25... Nxf3 {[%clk
0:01:44.7]} 26. gxf3 {[%clk 0:00:43.9]} 26... Nxe5 {[%clk 0:01:45.6]} 27. Bxe5
{[%clk 0:00:35.1]} 27... Rxe5 {[%clk 0:01:44.2]} 28. Rxe5 {[%clk 0:00:35]} 28...
fxe5 {[%clk 0:01:43.6]} 29. Kd2 {[%clk 0:00:35.9]} 29... Kf7 {[%clk 0:01:43]}
30. Ke3 {[%clk 0:00:36.3]} 30... Ke6 {[%clk 0:01:42.5]} 31. Ke4 {[%clk
0:00:36.9]} 31... c4 {[%clk 0:01:43]} 32. a4 {[%clk 0:00:31]} 32... Bc5 {[%clk
0:01:38]} 33. b3 {[%clk 0:00:28.4]} 33... cxb3 {[%clk 0:01:37.1]} 34. cxb3
{[%clk 0:00:29.3]} 34... a6 {[%clk 0:01:35.6]} 35. h3 {[%clk 0:00:26.9]} 35...
g6 {[%clk 0:01:34.4]} 36. Nd5 {[%clk 0:00:25.4]} 36... Kd6 {[%clk 0:01:34.2]}
37. Nf6 {[%clk 0:00:24.5]} 37... h5 {[%clk 0:01:34]} 38. Nd5 {[%clk 0:00:21.9]}
38... Bg1 {[%clk 0:01:30.1]} 39. b4 {[%clk 0:00:20.7]} 39... Bf2 {[%clk
0:01:26.6]} 40. b5 {[%clk 0:00:20.8]} 40... axb5 {[%clk 0:01:24.9]} 41. axb5
{[%clk 0:00:21.7]} 41... Kc5 {[%clk 0:01:10.3]} 42. Kxe5 {[%clk 0:00:19]} 42...
Kxb5 {[%clk 0:01:10.7]} 43. Ke4 {[%clk 0:00:19.1]} 43... Kc4 {[%clk 0:01:09.8]}
44. Nf4 {[%clk 0:00:15.4]} 44... b5 {[%clk 0:00:52.8]} 45. Nxg6 {[%clk
0:00:15.3]} 45... Bd4 {[%clk 0:00:52.5]} 46. Nf4 {[%clk 0:00:14.6]} 46... b4
{[%clk 0:00:50.9]} 47. Nd3 {[%clk 0:00:10.3]} 47... b3 {[%clk 0:00:50.2]} 48. f4
{[%clk 0:00:10]} 48... h4 {[%clk 0:00:50.1]} 49. f5 {[%clk 0:00:10.3]} 49... Bf6
{[%clk 0:00:47]} 50. Ke3 {[%clk 0:00:02.7]} 50... Kc3 {[%clk 0:00:39.6]} 51. Nc5
{[%clk 0:00:02.8]} 51... Bd4+ {[%clk 0:00:39.3]} 0-1

[Event "Early-Titled-Tuesday-Blitz-February-13-2024"]
[Site "Chess.com"]
[Date "2024.02.13"]
[Round "2"]
[White "Stewie_89"]
[Black "Mops_2004"]
[Result "0-1"]
[WhiteElo "2589"]
[BlackElo "2850"]
[TimeControl "180+1"]
[EndTime "8:20:10 PST"]
[Termination "Mops_2004 won on time"]

1. e4 {[%clk 0:03:00.9]} 1... g6 {[%clk 0:03:00.5]} 2. Nc3 {[%clk 0:02:58.8]}
2... Bg7 {[%clk 0:03:01.1]} 3. f4 {[%clk 0:02:58]} 3... c6 {[%clk 0:02:57.6]} 4.
Nf3 {[%clk 0:02:50.7]} 4... d5 {[%clk 0:02:57.3]} 5. d4 {[%clk 0:02:44.6]} 5...
dxe4 {[%clk 0:02:55.4]} 6. Nxe4 {[%clk 0:02:44]} 6... Nf6 {[%clk 0:02:53.5]} 7.
Nf2 {[%clk 0:02:40.1]} 7... O-O {[%clk 0:02:47.2]} 8. Bc4 {[%clk 0:02:38.4]}
8... c5 {[%clk 0:02:40.8]} 9. dxc5 {[%clk 0:02:22.8]} 9... Qa5+ {[%clk
0:02:36.4]} 10. c3 {[%clk 0:02:23]} 10... Qxc5 {[%clk 0:02:36.6]} 11. Qe2 {[%clk
0:02:23.4]} 11... b6 {[%clk 0:02:18]} 12. Be3 {[%clk 0:02:19.3]} 12... Qc7
{[%clk 0:02:17.6]} 13. O-O {[%clk 0:02:13.1]} 13... Bb7 {[%clk 0:02:17.2]} 14.
Bb3 {[%clk 0:02:13]} 14... e6 {[%clk 0:02:15]} 15. Ne5 {[%clk 0:01:47.7]} 15...
Nbd7 {[%clk 0:02:08.4]} 16. Bd4 {[%clk 0:01:45.9]} 16... Nc5 {[%clk 0:02:03.6]}
17. Bc2 {[%clk 0:01:41.6]} 17... Nd5 {[%clk 0:01:59.6]} 18. Ne4 {[%clk 0:01:24]}
18... Ba6 {[%clk 0:01:56.1]} 19. c4 {[%clk 0:01:14.2]} 19... Nb4 {[%clk
0:01:29.9]} 20. Bb3 {[%clk 0:01:05.4]} 20... Rad8 {[%clk 0:01:18.8]} 21. Bc3
{[%clk 0:01:04]} 21... Nbd3 {[%clk 0:01:11.4]} 22. Rad1 {[%clk 0:00:50.6]} 22...
Nxe5 {[%clk 0:00:49]} 23. fxe5 {[%clk 0:00:39.3]} 23... Rxd1 {[%clk 0:00:48]}
24. Rxd1 {[%clk 0:00:37.2]} 24... Nxe4 {[%clk 0:00:29]} 25. Qxe4 {[%clk
0:00:35.8]} 25... Rc8 {[%clk 0:00:29.3]} 26. h3 {[%clk 0:00:14.5]} 26... h5
{[%clk 0:00:29.1]} 27. Qf4 {[%clk 0:00:10.5]} 27... Rd8 {[%clk 0:00:16.2]} 28.
Rd6 {[%clk 0:00:09.5]} 28... Bf8 {[%clk 0:00:15.2]} 29. Rxd8 {[%clk 0:00:09.3]}
29... Qxd8 {[%clk 0:00:15.8]} 30. Kh1 {[%clk 0:00:07.5]} 30... Bc5 {[%clk
0:00:13.8]} 31. Bc2 {[%clk 0:00:07.4]} 31... Bb7 {[%clk 0:00:12.8]} 32. b4
{[%clk 0:00:07]} 32... Be7 {[%clk 0:00:11.2]} 33. Kh2 {[%clk 0:00:06.4]} 33...
Bg5 {[%clk 0:00:10.4]} 34. Qf2 {[%clk 0:00:06.5]} 34... h4 {[%clk 0:00:09.6]}
35. a4 {[%clk 0:00:04.3]} 35... Kg7 {[%clk 0:00:09.4]} 36. a5 {[%clk 0:00:04.6]}
36... bxa5 {[%clk 0:00:09.6]} 37. bxa5 {[%clk 0:00:05.5]} 37... a6 {[%clk
0:00:10.2]} 38. Qd4 {[%clk 0:00:05]} 38... Qc7 {[%clk 0:00:07.3]} 39. Qg4 {[%clk
0:00:03.3]} 39... Qe7 {[%clk 0:00:06.3]} 40. Qd4 {[%clk 0:00:03.3]} 40... Bc6
{[%clk 0:00:05]} 41. Kh1 {[%clk 0:00:02.6]} 41... Qb7 {[%clk 0:00:04.6]} 0-1

[Event "Early-Titled-Tuesday-Blitz-February-13-2024"]
[Site "Chess.com"]
[Date "2024.02.13"]
[Round "2"]
[White "RantomOpening"]
[Black "Mariia89"]
[Result "1-0"]
[WhiteElo "2487"]
[BlackElo "2174"]
[TimeControl "180+1"]
[EndTime "8:20:10 PST"]
[Termination "RantomOpening won by checkmate"]

1. e4 {[%clk 0:03:00.4]} 1... c6 {[%clk 0:02:59.3]} 2. d4 {[%clk 0:02:52.3]}
2... d5 {[%clk 0:03:00.2]} 3. Nc3 {[%clk 0:02:53.2]} 3... dxe4 {[%clk
0:03:00.4]} 4. Nxe4 {[%clk 0:02:54.1]} 4... Nf6 {[%clk 0:03:01.3]} 5. Nxf6+
{[%clk 0:02:54.8]} 5... exf6 {[%clk 0:03:01.5]} 6. Bd3 {[%clk 0:02:55.7]} 6...
Be7 {[%clk 0:03:01.6]} 7. Qh5 {[%clk 0:02:56.5]} 7... Be6 {[%clk 0:02:40.7]} 8.
c3 {[%clk 0:02:55.4]} 8... Qd5 {[%clk 0:02:39.1]} 9. Qxd5 {[%clk 0:02:52.9]}
9... Bxd5 {[%clk 0:02:38.5]} 10. Ne2 {[%clk 0:02:53.4]} 10... Na6 {[%clk
0:02:33]} 11. Nf4 {[%clk 0:02:53.2]} 11... Nc7 {[%clk 0:02:32.8]} 12. Nxd5
{[%clk 0:02:52]} 12... Nxd5 {[%clk 0:02:32]} 13. O-O {[%clk 0:02:51.2]} 13...
O-O {[%clk 0:02:31.6]} 14. Bd2 {[%clk 0:02:49.1]} 14... Rfe8 {[%clk 0:02:30.7]}
15. Rfe1 {[%clk 0:02:47.5]} 15... Bd6 {[%clk 0:02:29.1]} 16. g3 {[%clk
0:02:47.6]} 16... g6 {[%clk 0:02:12.5]} 17. Kg2 {[%clk 0:02:45.9]} 17... f5
{[%clk 0:02:10.4]} 18. Kf3 {[%clk 0:02:43.6]} 18... Nf6 {[%clk 0:02:10.4]} 19.
Bg5 {[%clk 0:02:39.1]} 19... Nd5 {[%clk 0:02:09]} 20. a3 {[%clk 0:02:37.1]}
20... b5 {[%clk 0:02:05.5]} 21. h4 {[%clk 0:02:30.4]} 21... Kg7 {[%clk 0:02:05]}
22. Bd2 {[%clk 0:02:29.7]} 22... Nf6 {[%clk 0:01:58.9]} 23. a4 {[%clk
0:02:24.9]} 23... a6 {[%clk 0:01:50]} 24. Rxe8 {[%clk 0:02:13.5]} 24... Rxe8
{[%clk 0:01:35.9]} 25. axb5 {[%clk 0:02:13]} 25... axb5 {[%clk 0:01:36.2]} 26.
Ra6 {[%clk 0:02:12.9]} 26... Rc8 {[%clk 0:01:36.3]} 27. Bg5 {[%clk 0:02:01.7]}
27... Nd5 {[%clk 0:01:35]} 28. Bxb5 {[%clk 0:01:57.8]} 28... Bxg3 {[%clk
0:01:24.3]} 29. Bxc6 {[%clk 0:01:54.4]} 29... Nc7 {[%clk 0:01:23.3]} 30. Bb7
{[%clk 0:01:34.9]} 30... Rb8 {[%clk 0:01:19.1]} 31. Bf6+ {[%clk 0:01:34.3]}
31... Kh6 {[%clk 0:01:14.3]} 32. fxg3 {[%clk 0:01:30.2]} 32... Rxb7 {[%clk
0:01:14.3]} 33. Bg5+ {[%clk 0:01:25.5]} 33... Kg7 {[%clk 0:01:14]} 34. b4 {[%clk
0:01:25.7]} 34... Ne6 {[%clk 0:01:13.6]} 35. d5 {[%clk 0:01:23.3]} 35... Nc7
{[%clk 0:01:10]} 36. Ra5 {[%clk 0:01:07.4]} 36... h6 {[%clk 0:01:09]} 37. Bf4
{[%clk 0:01:06.6]} 37... Nb5 {[%clk 0:01:04.7]} 38. Be5+ {[%clk 0:01:06.8]}
38... f6 {[%clk 0:01:03.4]} 39. c4 {[%clk 0:01:07]} 39... fxe5 {[%clk
0:00:59.5]} 40. Rxb5 {[%clk 0:01:07.3]} 40... Rc7 {[%clk 0:00:58.2]} 41. c5
{[%clk 0:01:07.6]} 41... e4+ {[%clk 0:00:49.8]} 42. Ke3 {[%clk 0:01:07.5]} 42...
g5 {[%clk 0:00:47.5]} 43. d6 {[%clk 0:01:07.5]} 43... Ra7 {[%clk 0:00:47.7]} 44.
c6 {[%clk 0:01:05.8]} 44... Ra3+ {[%clk 0:00:47.6]} 45. Ke2 {[%clk 0:01:05.5]}
45... f4 {[%clk 0:00:42.6]} 46. gxf4 {[%clk 0:00:53]} 46... gxf4 {[%clk
0:00:42.5]} 47. c7 {[%clk 0:00:41.5]} 47... f3+ {[%clk 0:00:41.9]} 48. Kf2
{[%clk 0:00:40.7]} 48... Ra2+ {[%clk 0:00:38.6]} 49. Kg3 {[%clk 0:00:38.5]}
49... Rg2+ {[%clk 0:00:36.2]} 50. Kh3 {[%clk 0:00:38.9]} 50... Rc2 {[%clk
0:00:30.7]} 51. Rc5 {[%clk 0:00:38.9]} 51... f2 {[%clk 0:00:28.6]} 52. Kg2
{[%clk 0:00:39]} 52... Ra2 {[%clk 0:00:13.2]} 53. c8=Q {[%clk 0:00:37.4]} 53...
e3 {[%clk 0:00:13.2]} 54. Qg4+ {[%clk 0:00:37.2]} 54... Kf6 {[%clk 0:00:13.1]}
55. Qf5+ {[%clk 0:00:37.7]} 55... Kg7 {[%clk 0:00:13.3]} 56. Rc7+ {[%clk
0:00:38.6]} 56... Kg8 {[%clk 0:00:13.6]} 57. Qc8# {[%clk 0:00:39]} 1-0